Workbook

Sheet Table S1 Fitting Photosynthesis
A1: Paste raw data here | AI1: Paste raw data here
A3: Ci | B3: Ci/Ca | C3: Ca | D3: PARi | E3: gsw | F3: Plot_272 | AI3: Ci | AJ3: Ci/Ca | AK3: Ca | AL3: PARi | AM3: gsw | AN3: Plot_272
A4: 75.0376777 | B4: 0.2278288675 | C4: 329.3598328 | D4: 2200.460205 | E4: 0.4068935306 | F4: 55.64184033 | AI4: 12.77206797 | AJ4: 0.3204499178 | AK4: =AI4/AJ4 -> 39.85667419 | AL4: 1799.35144 | AM4: 0.5814147349 | AN4: 8.105719494
A5: 103.2275515 | B5: 0.303665067 | C5: 339.9388428 | D5: 1500.110229 | E5: 0.3690477603 | F5: 47.24587285 | AI5: 20.56480886 | AJ5: 0.2581275762 | AK5: 79.66916656 | AL5: 1798.787476 | AM5: 0.5226691575 | AN5: 16.21766415
A6: 155.1324822 | B6: 0.4390028806 | C6: 353.3746338 | D6: 1000.866394 | E6: 0.3382941566 | F6: 36.09382272 | AI6: 43.88024248 | AJ6: 0.2692430589 | AK6: 162.9763184 | AL6: 1799.778931 | AM6: 0.4639706581 | AN6: 29.44868074
A7: 241.2833225 | B7: 0.6489320959 | C7: 371.815979 | D7: 501.2198181 | E7: 0.3078047962 | F7: 20.93956655 | AI7: 59.40529728 | AJ7: 0.2974533357 | AK7: 199.7129974 | AL7: 1800.883423 | AM7: 0.5470099273 | AN7: 39.87254543
A8: 299.8073564 | B8: 0.7823467273 | C8: 383.2154541 | D8: 249.4808807 | E8: 0.2857624341 | F8: 11.60445733 | AI8: 158.3130122 | AJ8: 0.4681412311 | AK8: 338.1736145 | AL8: 1799.109985 | AM8: 0.5230953726 | AN8: 48.33443724
A9: 332.6444745 | B9: 0.8524974119 | C9: 390.1999817 | D9: 118.9747772 | E9: 0.2411996313 | F9: 6.091222978 | AI9: 370.6865046 | AJ9: 0.6357355253 | AK9: 583.0828857 | AL9: 1800.515137 | AM9: 0.4715367118 | AN9: 50.18887411
A10: 357.1835692 | B10: 0.9058924537 | C10: 394.2891541 | D10: 59.61108398 | E10: 0.2141912028 | F10: 2.765966782 | AI10: 495.8030772 | AJ10: 0.6781083524 | AK10: 731.1561279 | AL10: 1799.700073 | AM10: 0.4337346966 | AN10: 50.5832587
A11: 381.1053857 | B11: 0.9586132783 | C11: 397.5590515 | D11: 30.75017357 | E11: 0.18643027 | F11: 0.01971174517 | AI11: 653.2925502 | AJ11: 0.7026479968 | AK11: 929.7579346 | AL11: 1799.074707 | AM11: 0.3693956399 | AN11: 50.41160101
A12: 397.5479423 | B12: 0.9946125218 | C12: 399.7013245 | D12: 15.28533173 | E12: 0.1308200945 | F12: -1.184001017 | AI12: 830.8042223 | AJ12: 0.7363044213 | AK12: 1128.343384 | AL12: 1800.622437 | AM12: 0.3483528045 | AN12: 50.32572268
A13: 416.9722611 | B13: 1.038918185 | C13: 401.352356 | D13: 0.1271615326 | E13: 0.1093471379 | F13: -2.268093777 | AI13: 1004.397877 | AJ13: 0.756934665 | AK13: 1326.928101 | AL13: 1800.870728 | AM13: 0.3256512931 | AN13: 50.38931646
A18: Filtered raw data | AI18: Filtered raw data
A19: Ci | B19: PAR | C19: =F3 -> Plot_272 | F19: Not used in fitting | AI19: Ci | AJ19: PAR | AK19: =AN3 -> Plot_272 | AN19: Not used in fitting
A20: =A4 -> 75.0376777 | B20: =D4 -> 2200.460205 | C20: =F4 -> 55.64184033 | AI20: =AI4 -> 12.77206797 | AJ20: =AL4 -> 1799.35144 | AK20: =AN4 -> 8.105719494 | CR20: Blank
A21: =A5 -> 103.2275515 | B21: =D5 -> 1500.110229 | C21: =F5 -> 47.24587285 | AI21: 20.56480886 | AJ21: =AL5 -> 1798.787476 | AK21: =AN5 -> 16.21766415
A22: 155.1324822 | B22: 1000.866394 | C22: 36.09382272 | AI22: 43.88024248 | AJ22: 1799.778931 | AK22: 29.44868074
A23: =A7 -> 241.2833225 | B23: =D7 -> 501.2198181 | C23: =F7 -> 20.93956655 | AI23: 59.40529728 | AJ23: 1800.883423 | AK23: 39.87254543
A24: 299.8073564 | B24: 249.4808807 | C24: 11.60445733 | AI24: 158.3130122 | AJ24: 1799.109985 | AK24: 48.33443724
A25: 332.6444745 | B25: 118.9747772 | C25: 6.091222978 | AI25: 370.6865046 | AJ25: 1800.515137 | AK25: 50.18887411
A26: 357.1835692 | B26: 59.61108398 | C26: 2.765966782 | AI26: 495.8030772 | AJ26: 1799.700073 | AK26: 50.5832587
A27: 381.1053857 | B27: 30.75017357 | C27: 0.01971174517 | AI27: 653.2925502 | AJ27: 1799.074707 | AK27: 50.41160101 | AV27: 0
A28: 397.5479423 | B28: 15.28533173 | C28: -1.184001017 | AI28: 830.8042223 | AJ28: 1800.622437 | AK28: 50.32572268 | AV28: 0
D29: =A13 -> 416.9722611 | E29: =D13 -> 0.1271615326 | F29: =F13 -> -2.268093777 | AI29: 1004.397877 | AJ29: 1800.870728 | AK29: 50.38931646 | AV29: 0
A30: =A14 -> 0 | B30: =D14 -> 0 | C30: =F14 -> 0 | AV30: 0
AV31: 0
AV32: 0
AV33: 0
A34: LeafTemperature | B34: 34 | AI34: LeafTemperature | AJ34: 34.344 | AV34: 0
AV35: 0
A36: Constants | D36: Variables | AI36: Constants | AL36: Variables | AV36: 0
A37: abs | B37: 0.85 | D37: gm(T) | E37: =B39*(((2*(B34-$C$133)^$J$137*($C$134-$C$133)^$J$137-(B34-$C$133)^(2*$J$137))/(($C$134-$C$133)^(2*$J$137)))^$C$137)/$C$136 -> 2.137417735 | AI37: gm25 | AJ37: 1.2 | AL37: gm(T) | AM37: =AJ37*(((2*(AJ34-$C$133)^$J$137*($C$134-$C$133)^$J$137-(AJ34-$C$133)^(2*$J$137))/(($C$134-$C$133)^(2*$J$137)))^$C$137)/$C$136 -> 2.169909755 | AV37: 0
A38: f | B38: 0.15 | D38: Kc(T) | E38: =$C$112*EXP($C$113*(B34+273-298.15)/(298.15*8.314*(B34+273))) -> 2552.906648 | AI38: α | AJ38: 0.1 | AL38: Kp(T) | AM38: =$C$120*EXP($C$121*(AJ34+273-298.15)/(298.15*8.314*(AJ34+273))) -> 116.2282738 | AV38: 0
A39: gm25 | B39: 1.2 | D39: Ko(T) | E39: =$C$114*EXP($C$115*(B34+273-298.15)/(298.15*8.314*(B34+273))) -> 329924.3139 | AI39: gbs(T) | AJ39: 0.003 | AL39: Rd(T) | AM39: =AJ41*EXP($C$125*(AJ34+273-298.15)/(298.15*8.314*(AJ34+273))) -> 0 | AV39: 0
A40: x | B40: 0.4 | D40: Vcmax/Vomax(T) | E40: =$C$118*EXP($C$119*(B34+273-298.15)/(298.15*8.314*(B34+273))) -> 7.06015366 | AI40: Om | AJ40: 210000 | AL40: Rm(T) | AM40: =AM39/2 -> 0 | BP40: 0
A41: α | B41: 0.1 | D41: γ*(T) | E41: =0.5/(E39/E38*E40) -> 0.0005479948324 | AI41: Rd25 | AJ41: 0 | AL41: Kc(T) | AM41: =$C$112*EXP($C$113*(AJ34+273-298.15)/(298.15*8.314*(AJ34+273))) -> 2625.799157
A42: gbs(T) | B42: 0.003 | D42: Rd(T) | E42: =B44*EXP($C$125*(B34+273-298.15)/(298.15*8.314*(B34+273))) -> 0 | AL42: Ko(T) | AM42: =$C$114*EXP($C$115*(AJ34+273-298.15)/(298.15*8.314*(AJ34+273))) -> 331446.9255
A43: Om | B43: 210000 | D43: Rm(T) | E43: =E42/2 -> 0 | AL43: Vcmax/Vomax(T) | AM43: =$C$118*EXP($C$119*(AJ34+273-298.15)/(298.15*8.314*(AJ34+273))) -> 7.126299052
A44: Rd25 | B44: 0 | AL44: γ*(T) | AM44: =0.5/(AM42/AM41*AM43) -> 0.000555844702
A45: φ | B45: 2
A46: Input parameters | D46: I | E46: I2 | F46: Jt | H46: Ci | I46: 1/gm(T) | J46: Rm(T) | K46: γ*(T) | L46: α/0.047 | M46: gbs(T) | N46: Om | O46: Rd(T) | T46: Aj | V46: Weighting | AI46: Additional ones for Aj curve
A47: theta | B47: 0.6456010512 | D47: =B20 -> 2200.460205 | E47: =D47*B$37*(1-B$38)/B$48 -> 641.3851297 | F47: =(E47+B$49-((E47+B$49)^2-4*B$47*B$49*E47)^0.5)/(2*B$47) -> 322.9493101 | H47: =A20 -> 75.0376777 | I47: =1/E$37 -> 0.4678542634 | J47: =E$43 -> 0 | K47: =E$41 -> 0.0005479948324 | L47: =B$41/0.047 -> 2.127659574 | M47: =B$42 -> 0.003 | N47: =B$43 -> 210000 | O47: =E$42 -> 0 | T47: =(-((N58^2-4*O58)^0.5)+P58)/(2*Q58) -> 55.72789628 | U47: =(1-T47/C20)^2*V47 -> 2.391987502e-06 | V47: 1 | AI47: Constants | AL47: Variables | AQ47: Optimise Ac1 separately | AW47: Optimise Ac1 separately | BD47: Optimise Anet
A48: PSlight_absorption | B48: 2.478748609 | D48: =B21 -> 1500.110229 | E48: 437.2487137 | F48: 274.6381775 | H48: =A21 -> 103.2275515 | I48: 0.4678542634 | J48: 0 | K48: 0.0005479948324 | L48: 2.127659574 | M48: 0.003 | N48: 210000 | O48: 0 | T48: 46.93847482 | U48: =(1-T48/C21)^2*V48 -> 4.233254927e-05 | V48: 1 | AI48: PAR | AJ48: 1800 | AQ48: Residual between Cm' and calculated Cm
A49: Jmax(T) | B49: 439.0244546 | D49: 1000.866394 | E49: 291.7302574 | F49: 216.7862279 | H49: 155.1324822 | I49: 0.4678542634 | J49: 0 | K49: 0.0005479948324 | L49: 2.127659574 | M49: 0.003 | N49: 210000 | O49: 0 | T49: 36.50138824 | U49: 0.000127505557 | V49: 1 | AI49: abs | AJ49: 0.85 | AN49: Cm' | AO49: Cm | AP49: Point | AR49: Residual between Ac1 and observed | AS49: Weighting | AT49: Weighting | AX49: Weighting | BD49: Point | BE49: Anet | BG49: Weighting | BH49: =AJ54 -> 59.8
D50: =B23 -> 501.2198181 | E50: 146.0944112 | F50: 127.5747211 | H50: =A23 -> 241.2833225 | I50: 0.4678542634 | J50: 0 | K50: 0.0005479948324 | L50: 2.127659574 | M50: 0.003 | N50: 210000 | O50: 0 | T50: 20.63511483 | U50: =(1-T50/C23)^2*V50 -> 0.0002113982957 | V50: 1 | AI50: f | AJ50: 0.15 | AN50: 13.31871564 | AO50: =AQ76-BO76/AM$37 -> 8.391541383 | AP50: 1 | AQ50: =(1-AN50/AO50)^2 -> 0.3447564207 | AR50: =(1-BO76/AK20)^2*BG50 -> 0.0298154953 | AT50: 1 | AW50: =(1-BO92/AK20)^2*AX50 -> 28.22251174 | AX50: 1 | BD50: 1 | BE50: =MIN(BO76,BO92) -> 9.505347373 | BF50: =(AK20-BE50)^2*BG50 -> 1.958958201 | BG50: 1 | BH50: =AJ55 -> 191
A51: theta lower limit | B51: 0.05 | D51: =B28 -> 15.28533173 | E51: 4.455333684 | F51: 4.43926282 | H51: =A28 -> 397.5479423 | I51: 0.4678542634 | J51: 0 | K51: 0.0005479948324 | L51: 2.127659574 | M51: 0.003 | N51: 210000 | O51: 0 | T51: 0.4652353231 | U51: =(1-T51/C24)^2*V51 -> 0.9214251188 | V51: 1 | AI51: x | AJ51: 0.4 | AN51: 5.913131123 | AO51: 13.32763456 | AP51: 2 | AQ51: 0.3094981019 | AR51: 0.001003128047 | AT51: 1 | AW51: 4.645134288 | AX51: 1 | BD51: 2 | BE51: 15.7040151 | BF51: =(AK21-BE51)^2*BG51 -> 0.2638353465 | BG51: 1
A52: PSlight_absorption upper limit | B52: 5 | D52: 0 | E52: 0 | F52: 0 | H52: 0 | I52: 0.4678542634 | J52: 0 | K52: 0.0005479948324 | L52: 2.127659574 | M52: 0.003 | N52: 210000 | O52: 0 | T52: 0 | U52: =(1-T52/C25)^2*V52 -> 1 | V52: 1 | AI52: φ | AJ52: 2 | AN52: 18.75464029 | AO52: 30.34425122 | AP52: 3 | AQ52: 0.1458763414 | AR52: 6.801504328e-06 | AT52: 1 | AW52: 0.5463784725 | AX52: 1 | BD52: 3 | BE52: 29.37187949 | BF52: 0.005898433213 | BG52: 1
D53: 0 | E53: 0 | F53: 0 | H53: 0 | I53: 0.4678542634 | J53: 0 | K53: 0.0005479948324 | L53: 2.127659574 | M53: 0.003 | N53: 210000 | O53: 0 | T53: 0 | U53: =(1-T53/C26)^2*V53 -> 1 | V53: 1 | AI53: Input parameter | AN53: 0 | AO53: 41.10249458 | AP53: 4 | AQ53: 1 | AR53: 1.552705969e-05 | AT53: 1 | AW53: 0.0814553815 | AX53: 1 | BD53: 4 | BE53: 39.7154301 | BF53: 0.02468522817 | BG53: 1
D54: 0 | E54: 0 | F54: 0 | H54: 0 | I54: 0.4678542634 | J54: 0 | K54: 0.0005479948324 | L54: 2.127659574 | M54: 0.003 | N54: 210000 | O54: 0 | T54: 0 | U54: =(1-T54/C27)^2*V54 -> 1 | V54: 1 | AE54: 0 | AI54: Vcmax(T) | AJ54: 59.8 | AN54: 124.5837938 | AO54: 136.028489 | AP54: 5 | AQ54: 0.007078621812 | AR54: 1.881758987e-07 | AT54: 1 | AW54: 0.01967142768 | AX54: 5 | BD54: 5 | BE54: 48.35540436 | BF54: 0.0004396198885 | BG54: 1
D55: =B30 -> 0 | E55: 0 | F55: 0 | H55: =A30 -> 0 | I55: 0.4678542634 | J55: 0 | K55: 0.0005479948324 | L55: 2.127659574 | M55: 0.003 | N55: 210000 | O55: 0 | T55: 0 | U55: 0 | V55: 0 | W55: Total residual | AE55: 0 | AI55: Vpmax(T) | AJ55: 191 | AN55: 419.4423677 | AO55: 347.5299127 | AP55: 6 | AQ55: 0.04281775054 | AR55: 1.374484006e-06 | AT55: 1 | AW55: 0.0008707702071 | AX55: 1 | BD55: 6 | BE55: 50.24771474 | BF55: 0.003462219492 | BG55: 1
W56: =SUM(U47:U55)*10000 -> 39218.08747 | AN56: 589.5760442 | AO56: 472.4618139 | AP56: 7 | AQ56: 0.0614449098 | AR56: 1.660217722e-06 | AT56: 1 | AW56: 0.0006002131081 | AX56: 1 | BD56: 7 | BE56: 50.64843494 | BF56: 0.004247942738 | BG56: 1
D57: (1-x)*J/3 | E57: 7/3*γ*(T) | F57: x3 | G57: x4 | H57: x5 | I57: x6 | J57: x7 | K57: x8 | L57: x9 | N57: a | O57: b | P57: c | Q57: d | AI57: theta | AJ57: =AD61 -> 0.6456010512 | AN57: 841.6830848 | AO57: 630.0249002 | AP57: 8 | AQ57: 0.1128638096 | AR57: 2.339083743e-06 | AT57: 1 | AW57: 0.00101097189 | AX57: 1 | BD57: 8 | BE57: 50.48870083 | BF57: 0.005944382557 | BG57: 1
D58: =(1-B$40)*F47/3 -> 64.58986201 | E58: =7/3*E$41 -> 0.001278654609 | F58: 0 | G58: 0 | H58: =B$40*F47/B$45 -> 64.58986201 | I58: 1 | J58: 0 | K58: 1 | L58: 1 | N58: =L47*O47*E58*L58-L47*K47*D58*L58-M47*H47+M47*I47*O47-M47*I47*D58-N47*M47*E58-M47*F58+J47*K58-H47*G58*K58+I47*O47*G58*K58-I47*D58*G58*K58+O47*I58*K58-D58*I58*K58-H58*K58+J58*K58 -> -130.3763537 | O58: =Q58*(-M47*H47*O47+M47*H47*D58-N47*M47*O47*E58-M47*O47*F58-N47*M47*K47*D58+J47*O47*K58-J47*D58*K58-H47*O47*G58*K58+H47*D58*G58*K58-O47*J58*K58+D58*H58*K58-D58*J58*K58) -> 4158.60748 | P58: =-N58 -> 130.3763537 | Q58: =-L47*E58*L58+M47*I47+I47*G58*K58+I58*K58 -> 0.9986830211 | AI58: PSlight_absorption | AJ58: =AD62 -> 2.478748609 | AN58: 1130.886627 | AO58: 807.5969568 | AP58: 9 | AQ58: 0.160248624 | AR58: 4.03029539e-07 | AT58: 1 | AW58: 0.001466534211 | AX58: 1 | BD58: 9 | BE58: 50.35767177 | BF58: 0.001020744193 | BG58: 1
D59: 54.9276355 | E59: 0.001278654609 | F59: 0 | G59: 0 | H59: 54.9276355 | I59: 1 | J59: 0 | K59: 1 | L59: 1 | N59: -111.1116431 | O59: 3011.121426 | P59: 111.1116431 | Q59: 0.9986830211 | AB59: Fitted results: | AI59: Jmax(T) | AJ59: =AD63 -> 439.0244546 | AN59: 1397.065918 | AO59: 981.1615228 | AP59: 10 | AQ59: 0.1796825914 | AR59: 3.901932675e-07 | AT59: 1 | AW59: 0.001693180821 | AX59: 1 | BD59: 10 | BE59: 50.42079237 | BF59: 0.0009907331752 | BG59: 1
D60: 43.35724559 | E60: 0.001278654609 | F60: 0 | G60: 0 | H60: 43.35724559 | I60: 1 | J60: 0 | K60: 1 | L60: 1 | N60: -88.09684787 | O60: 1882.577997 | P60: 88.09684787 | Q60: 0.9986830211 | AB60: Data ID | AD60: =C19 -> Plot_272
D61: 25.51494421 | E61: 0.001278654609 | F61: 0 | G61: 0 | H61: 25.51494421 | I61: 1 | J61: 0 | K61: 1 | L61: 1 | N61: -52.62485168 | O61: 659.8025815 | P61: 52.62485168 | Q61: 0.9986830211 | AB61: =A47 -> theta | AD61: =B47 -> 0.6456010512 | AI61: Jmax(T) mean | AJ61: 750
D62: 0.8878525641 | E62: 0.001278654609 | F62: 0 | G62: 0 | H62: 0.8878525641 | I62: 1 | J62: 0 | K62: 1 | L62: 1 | N62: -3.776182704 | O62: 1.538625717 | P62: 3.776182704 | Q62: 0.9986830211 | AB62: =A48 -> PSlight_absorption | AD62: =B48 -> 2.478748609 | AI62: Jmax(T) lower limit | AJ62: =AJ61-80 -> 670 | AU62: Total residual | AY62: Total residual | BH62: Total residual
D63: 0 | E63: 0.001278654609 | F63: 0 | G63: 0 | H63: 0 | I63: 1 | J63: 0 | K63: 1 | L63: 1 | N63: -0.8055524036 | O63: 0 | P63: 0.8055524036 | Q63: 0.9986830211 | AB63: =A49 -> Jmax(T) | AD63: =B49 -> 439.0244546 | AI63: Jmax(T) upper limit | AJ63: =AJ61+100 -> 850 | AQ63: =SUM(AQ50:AQ57) -> 2.024335956 | AU63: =AR63+AQ63 -> 2.024335956 | AY63: =AW63 -> 0 | BF63: =SUM(BF50:BF62) -> 2.269482851 | BH63: =AQ63+BF63 -> 4.293818806
D64: 0 | E64: 0.001278654609 | F64: 0 | G64: 0 | H64: 0 | I64: 1 | J64: 0 | K64: 1 | L64: 1 | N64: -0.8055524036 | O64: 0 | P64: 0.8055524036 | Q64: 0.9986830211
D65: 0 | E65: 0.001278654609 | F65: 0 | G65: 0 | H65: 0 | I65: 1 | J65: 0 | K65: 1 | L65: 1 | N65: -0.8055524036 | O65: 0 | P65: 0.8055524036 | Q65: 0.9986830211
D66: 0 | E66: 0.001278654609 | F66: 0 | G66: 0 | H66: 0 | I66: 1 | J66: 0 | K66: 1 | L66: 1 | N66: -0.8055524036 | O66: 0 | P66: 0.8055524036 | Q66: 0.9986830211
BK67: Fitted results:
BK68: Data ID | BM68: =AK19 -> Plot_272
BK69: =AI54 -> Vcmax(T) | BM69: =AJ54 -> 59.8
BK70: =AI55 -> Vpmax(T) | BM70: =AJ55 -> 191
BK71: =AI57 -> theta | BM71: =AJ57 -> 0.6456010512
BK72: =AI58 -> PSlight_absorption | BM72: =AJ58 -> 2.478748609
BK73: =AI59 -> Jmax(T) | BM73: =AJ59 -> 439.0244546
AQ75: Ci | AS75: 1/gm(T) | AT75: Rm(T) | AU75: γ*(T) | AV75: α/0.047 | AW75: gbs(T) | AX75: Om | AY75: Rd(T) | BA75: Vcmax(T) | BB75: Kc(T)/Ko(T) | BC75: KCc(T) | BD75: Vpmax/(Cm+Kp) | BE75: x5 | BF75: x6 | BG75: x7 | BH75: x8 | BI75: x9 | BK75: a | BL75: b | BM75: c | BN75: d | BO75: Ac1
AQ76: =AI20 -> 12.77206797 | AS76: =1/AM$37 -> 0.4608486587 | AT76: =AM$40 -> 0 | AU76: =AM$44 -> 0.000555844702 | AV76: =AJ$38/0.047 -> 2.127659574 | AW76: =AJ$39 -> 0.003 | AX76: =AJ$40 -> 210000 | AY76: =AM$39 -> 0 | BA76: =AJ$54 -> 59.8 | BB76: =AM$41/AM$42 -> 0.007922231146 | BC76: =AM$41 -> 2625.799157 | BD76: =AJ$55/(AN50+AM$38) -> 1.474368496 | BE76: 0 | BF76: 1 | BG76: 0 | BH76: 1 | BI76: 1 | BK76: =AV76*AY76*BB76*BI76-AV76*AU76*BA76*BI76-AW76*AQ76+AW76*AS76*AY76-AW76*AS76*BA76-AX76*AW76*BB76-AW76*BC76+AT76*BH76-AQ76*BD76*BH76+AS76*AY76*BD76*BH76-AS76*BA76*BD76*BH76+AY76*BF76*BH76-BA76*BF76*BH76-BE76*BH76+BG76*BH76 -> -132.322605 | BL76: =BN76*(-AW76*AQ76*AY76+AW76*AQ76*BA76-AX76*AW76*AY76*BB76-AW76*AY76*BC76-AX76*AW76*AU76*BA76+AT76*AY76*BH76-AT76*BA76*BH76-AQ76*AY76*BD76*BH76+AQ76*BA76*BD76*BH76-AY76*BG76*BH76+BA76*BE76*BH76-BA76*BG76*BH76) -> 1842.746904 | BM76: =-BK76 -> 132.322605 | BN76: =-AV76*BB76*BI76+AW76*AS76+AS76*BD76*BH76+BF76*BH76 -> 1.663987479 | BO76: =(-((BK76^2-4*BL76)^0.5)+BM76)/(2*BN76) -> 9.505347373
AQ77: 20.56480886 | AS77: 0.4608486587 | AT77: 0 | AU77: 0.000555844702 | AV77: 2.127659574 | AW77: 0.003 | AX77: 210000 | AY77: 0 | BA77: 59.8 | BB77: 0.007922231146 | BC77: 2625.799157 | BD77: 1.563761282 | BE77: 0 | BF77: 1 | BG77: 0 | BH77: 1 | BI77: 1 | BK77: -148.1372539 | BL77: 3249.780392 | BM77: =-BK77 -> 148.1372539 | BN77: 1.705184024 | BO77: =(-((BK77^2-4*BL77)^0.5)+BM77)/(2*BN77) -> 15.7040151
AQ78: 43.88024248 | AS78: 0.4608486587 | AT78: 0 | AU78: 0.000555844702 | AV78: 2.127659574 | AW78: 0.003 | AX78: 210000 | AY78: 0 | BA78: 59.8 | BB78: 0.007922231146 | BC78: 2625.799157 | BD78: 1.414993899 | BE78: 0 | BF78: 1 | BG78: 0 | BH78: 1 | BI78: 1 | BK78: -174.0391807 | BL78: 6055.396602 | BM78: =-BK78 -> 174.0391807 | BN78: 1.636624776 | BO78: =(-((BK78^2-4*BL78)^0.5)+BM78)/(2*BN78) -> 29.37187949
AQ79: 59.40529728 | AS79: 0.4608486587 | AT79: 0 | AU79: 0.000555844702 | AV79: 2.127659574 | AW79: 0.003 | AX79: 210000 | AY79: 0 | BA79: 59.8 | BB79: 0.007922231146 | BC79: 2625.799157 | BD79: 1.643317875 | BE79: 0 | BF79: 1 | BG79: 0 | BH79: 1 | BI79: 1 | BK79: -215.9095907 | BL79: 10150.61547 | BM79: 215.9095907 | BN79: 1.741847574 | BO79: 39.7154301
AQ80: 158.3130122 | AS80: 0.4608486587 | AT80: 0 | AU80: 0.000555844702 | AV80: 2.127659574 | AW80: 0.003 | AX80: 210000 | AY80: 0 | BA80: 59.8 | BB80: 0.007922231146 | BC80: 2625.799157 | BD80: 0.7931496202 | BE80: 0 | BF80: 1 | BG80: 0 | BH80: 1 | BI80: 1 | BK80: -220.7208582 | BL80: 10147.37302 | BM80: 220.7208582 | BN80: 1.350048674 | BO80: 48.35540436
AQ81: 370.6865046 | AS81: 0.4608486587 | AT81: 0 | AU81: 0.000555844702 | AV81: 2.127659574 | AW81: 0.003 | AX81: 210000 | AY81: 0 | BA81: 59.8 | BB81: 0.007922231146 | BC81: 2625.799157 | BD81: 0.3565623822 | BE81: 0 | BF81: 1 | BG81: 0 | BH81: 1 | BI81: 1 | BK81: -215.9331378 | BL81: 9132.764526 | BM81: 215.9331378 | BN81: 1.148848031 | BO81: 50.24771474
AQ82: 495.8030772 | AS82: 0.4608486587 | AT82: 0 | AU82: 0.000555844702 | AV82: 2.127659574 | AW82: 0.003 | AX82: 210000 | AY82: 0 | BA82: 59.8 | BB82: 0.007922231146 | BC82: 2625.799157 | BD82: 0.2706132495 | BE82: 0 | BF82: 1 | BG82: 0 | BH82: 1 | BI82: 1 | BK82: -215.9378556 | BL82: 8975.319936 | BM82: 215.9378556 | BN82: 1.109238488 | BO82: 50.64843494
AQ83: 653.2925502 | AS83: 0.4608486587 | AT83: 0 | AU83: 0.000555844702 | AV83: 2.127659574 | AW83: 0.003 | AX83: 210000 | AY83: 0 | BA83: 59.8 | BB83: 0.007922231146 | BC83: 2625.799157 | BD83: 0.1993921445 | BE83: 0 | BF83: 1 | BG83: 0 | BH83: 1 | BI83: 1 | BK83: -210.5380801 | BL83: 8488.502621 | BM83: 210.5380801 | BN83: 1.076416337 | BO83: 50.48870083
AQ84: 830.8042223 | AS84: 0.4608486587 | AT84: 0 | AU84: 0.000555844702 | AV84: 2.127659574 | AW84: 0.003 | AX84: 210000 | AY84: 0 | BA84: 59.8 | BB84: 0.007922231146 | BC84: 2625.799157 | BD84: 0.1531534904 | BE84: 0 | BF84: 1 | BG84: 0 | BH84: 1 | BI84: 1 | BK84: -206.7754996 | BL84: 8163.46159 | BM84: 206.7754996 | BN84: 1.055107316 | BO84: 50.35767177
AQ85: 1004.397877 | AS85: 0.4608486587 | AT85: 0 | AU85: 0.000555844702 | AV85: 2.127659574 | AW85: 0.003 | AX85: 210000 | AY85: 0 | BA85: 59.8 | BB85: 0.007922231146 | BC85: 2625.799157 | BD85: 0.1262147182 | BE85: 0 | BF85: 1 | BG85: 0 | BH85: 1 | BI85: 1 | BK85: -206.0831103 | BL85: 8070.526193 | BM85: 206.0831103 | BN85: 1.042692619 | BO85: 50.42079237
AN91: I | AO91: I2 | AP91: Jt | AQ91: Ci | AS91: 1/gm(T) | AT91: Rm(T) | AU91: γ*(T) | AV91: α/0.047 | AW91: gbs(T) | AX91: Om | AY91: Rd(T) | BA91: (1-x)*J/3 | BB91: 7/3*γ*(T) | BC91: x3 | BD91: x4 | BE91: x5 | BF91: x6 | BG91: x7 | BH91: x8 | BI91: x9 | BK91: a | BL91: b | BM91: c | BN91: d | BO91: Aj
AN92: =AJ20 -> 1799.35144 | AO92: =AN92*AJ$49*(1-AJ$50)/AJ$58 -> 524.4708604 | AP92: =(AO92+AJ$59-((AO92+AJ$59)^2-4*AJ$57*AJ$59*AO92)^0.5)/(2*AJ$57) -> 298.8057555 | AQ92: =AI20 -> 12.77206797 | AS92: =1/AM$37 -> 0.4608486587 | AT92: =AM$40 -> 0 | AU92: =AM$44 -> 0.000555844702 | AV92: =AJ$38/0.047 -> 2.127659574 | AW92: =AJ$39 -> 0.003 | AX92: =AJ$40 -> 210000 | AY92: =AM$39 -> 0 | BA92: =(1-AJ$51)*AP92/3 -> 59.7611511 | BB92: =7/3*AM$44 -> 0.001296970971 | BC92: 0 | BD92: 0 | BE92: =AJ$51*AP92/AJ$52 -> 59.7611511 | BF92: 1 | BG92: 0 | BH92: 1 | BI92: 1 | BK92: =AV92*AY92*BB92*BI92-AV92*AU92*BA92*BI92-AW92*AQ92+AW92*AS92*AY92-AW92*AS92*BA92-AX92*AW92*BB92-AW92*BC92+AT92*BH92-AQ92*BD92*BH92+AS92*AY92*BD92*BH92-AS92*BA92*BD92*BH92+AY92*BF92*BH92-BA92*BF92*BH92-BE92*BH92+BG92*BH92 -> -120.5310091 | BL92: =BN92*(-AW92*AQ92*AY92+AW92*AQ92*BA92-AX92*AW92*AY92*BB92-AW92*AY92*BC92-AX92*AW92*AU92*BA92+AT92*AY92*BH92-AT92*BA92*BH92-AQ92*AY92*BD92*BH92+AQ92*BA92*BD92*BH92-AY92*BG92*BH92+BA92*BE92*BH92-BA92*BG92*BH92) -> 3547.865683 | BM92: =-BK92 -> 120.5310091 | BN92: =-AV92*BB92*BI92+AW92*AS92+AS92*BD92*BH92+BF92*BH92 -> 0.9986230333 | BO92: =(-((BK92^2-4*BL92)^0.5)+BM92)/(2*BN92) -> 51.16724406
AN93: 1798.787476 | AO93: 524.3064772 | AP93: 298.7658454 | AQ93: 20.56480886 | AS93: 0.4608486587 | AT93: 0 | AU93: 0.000555844702 | AV93: 2.127659574 | AW93: 0.003 | AX93: 210000 | AY93: 0 | BA93: 59.75316908 | BB93: 0.001296970971 | BC93: 0 | BD93: 0 | BE93: 59.75316908 | BF93: 1 | BG93: 0 | BH93: 1 | BI93: 1 | BK93: -120.5384028 | BL93: 3548.310516 | BM93: =-BK93 -> 120.5384028 | BN93: =-AV93*BB93*BI93+AW93*AS93+AS93*BD93*BH93+BF93*BH93 -> 0.9986230333 | BO93: 51.17090418
AN94: 1799.778931 | AO94: 524.5954643 | AP94: 298.8359949 | AQ94: 43.88024248 | AS94: 0.4608486587 | AT94: 0 | AU94: 0.000555844702 | AV94: 2.127659574 | AW94: 0.003 | AX94: 210000 | AY94: 0 | BA94: 59.76719899 | BB94: 0.001296970971 | BC94: 0 | BD94: 0 | BE94: 59.76719899 | BF94: 1 | BG94: 0 | BH94: 1 | BI94: 1 | BK94: -120.6364449 | BL94: 3554.155763 | BM94: 120.6364449 | BN94: 0.9986230333 | BO94: 51.21638527
AN95: 1800.883423 | AO95: 524.9173992 | AP95: 298.9140726 | AQ95: 59.40529728 | AS95: 0.4608486587 | AT95: 0 | AU95: 0.000555844702 | AV95: 2.127659574 | AW95: 0.003 | AX95: 210000 | AY95: 0 | BA95: 59.78281453 | BB95: 0.001296970971 | BC95: 0 | BD95: 0 | BE95: 59.78281453 | BF95: 1 | BG95: 0 | BH95: 1 | BI95: 1 | BK95: -120.7142912 | BL95: 3558.797183 | BM95: 120.7142912 | BN95: 0.9986230333 | BO95: 51.25232508
AN96: 1799.109985 | AO96: 524.4004816 | AP96: 298.7886708 | AQ96: 158.3130122 | AS96: 0.4608486587 | AT96: 0 | AU96: 0.000555844702 | AV96: 2.127659574 | AW96: 0.003 | AX96: 210000 | AY96: 0 | BA96: 59.75773416 | BB96: 0.001296970971 | BC96: 0 | BD96: 0 | BE96: 59.75773416 | BF96: 1 | BG96: 0 | BH96: 1 | BI96: 1 | BK96: -120.9607893 | BL96: 3573.514584 | BM96: 120.9607893 | BN96: 0.9986230333 | BO96: 51.36616085
AN97: 1800.515137 | AO97: 524.810052 | AP97: 298.8880463 | AQ97: 370.6865046 | AS97: 0.4608486587 | AT97: 0 | AU97: 0.000555844702 | AV97: 2.127659574 | AW97: 0.003 | AX97: 210000 | AY97: 0 | BA97: 59.77760925 | BB97: 0.001296970971 | BC97: 0 | BD97: 0 | BE97: 59.77760925 | BF97: 1 | BG97: 0 | BH97: 1 | BI97: 1 | BK97: -121.6377109 | BL97: 3613.922662 | BM97: 121.6377109 | BN97: 0.9986230333 | BO97: 51.66988835
AN98: 1799.700073 | AO98: 524.5724791 | AP98: 298.8304176 | AQ98: 495.8030772 | AS98: 0.4608486587 | AT98: 0 | AU98: 0.000555844702 | AV98: 2.127659574 | AW98: 0.003 | AX98: 210000 | AY98: 0 | BA98: 59.76608352 | BB98: 0.001296970971 | BC98: 0 | BD98: 0 | BE98: 59.76608352 | BF98: 1 | BG98: 0 | BH98: 1 | BI98: 1 | BK98: -121.9899796 | BL98: 3634.940254 | BM98: 121.9899796 | BN98: 0.9986230333 | BO98: 51.82251045
AN99: 1799.074707 | AO99: 524.3901988 | AP99: 298.7861743 | AQ99: 653.2925502 | AS99: 0.4608486587 | AT99: 0 | AU99: 0.000555844702 | AV99: 2.127659574 | AW99: 0.003 | AX99: 210000 | AY99: 0 | BA99: 59.75723486 | BB99: 0.001296970971 | BC99: 0 | BD99: 0 | BE99: 59.75723486 | BF99: 1 | BG99: 0 | BH99: 1 | BI99: 1 | BK99: -122.444728 | BL99: 3662.06857 | BM99: 122.444728 | BN99: 0.9986230333 | BO99: 52.01447739
AN100: 1800.622437 | AO100: 524.8413275 | AP100: 298.8956299 | AQ100: 830.8042223 | AS100: 0.4608486587 | AT100: 0 | AU100: 0.000555844702 | AV100: 2.127659574 | AW100: 0.003 | AX100: 210000 | AY100: 0 | BA100: 59.77912597 | BB100: 0.001296970971 | BC100: 0 | BD100: 0 | BE100: 59.77912597 | BF100: 1 | BG100: 0 | BH100: 1 | BI100: 1 | BK100: -123.0211014 | BL100: 3696.507583 | BM100: 123.0211014 | BN100: 0.9986230333 | BO100: 52.2529641
AN101: 1800.870728 | AO101: 524.9136988 | AP101: 298.9131756 | AQ101: 1004.397877 | AS101: 0.4608486587 | AT101: 0 | AU101: 0.000555844702 | AV101: 2.127659574 | AW101: 0.003 | AX101: 210000 | AY101: 0 | BA101: 59.78263512 | BB101: 0.001296970971 | BC101: 0 | BD101: 0 | BE101: 59.78263512 | BF101: 1 | BG101: 0 | BH101: 1 | BI101: 1 | BK101: -123.5489097 | BL101: 3728.024861 | BM101: 123.5489097 | BN101: 0.9986230333 | BO101: 52.46275008
A111: Temperature response
A112: Kc_P25 | C112: 1210 | D112: KcP25 | M112: Table S1 (Wu et al, 2019)
A113: Kc_Ea | C113: 64200 | D113: KcEa
A114: Ko_P25 | C114: 292000 | D114: KoP25
A115: Ko_Ea | C115: 10500 | D115: KoEa
A116: Vcmax_P25 | C116: - | D116: VcmaxP25
A117: Vcmax_Ea | C117: 78000 | D117: VcmaxEa
A118: Vcmax/Vomax_P25 | C118: 5.513 | D118: Vcmax_VomaxP25
A119: Vcmax/Vomax_Ea | C119: 21265 | D119: Vcmax_VomaxEa
A120: Kp_P25 | C120: 75 | D120: KpP25
A121: Kp_Ea | C121: 36300 | D121: KpEa
A122: Vpmax_P25 | C122: - | D122: VpmaxP25
A123: Vpmax_Ea | C123: 57043 | D123: VpmaxEa
A124: Rd_P25 | C124: - | D124: RdP25
A125: Rd_Ea | C125: 46390 | D125: RdEa
A126: Jmax_P25 | D126: JP25
A127: Jmax_Tmin | C127: 0.0 | D127: JTMin
A128: Jmax_Opt | C128: 37.9 | D128: JTOpt
A129: Jmax_Tmax | C129: 55.0 | D129: JTMax
A130: Jmax_Cnorm | C130: 0.711 | D130: JMaxC
A131: Jmax_beta | C131: 1.00 | D131: Jbeta | J131: =LN(2)/LN((C129-C127)/(C128-C127)) -> 1.86
A132: Gm_P25 | C132: - | D132: GmP25
A133: Gm_Tmin | C133: 0.0 | D133: GmTMin
A134: Gm_Opt | C134: 42.0 | D134: GmTOpt
A135: Gm_Tmax | C135: 55.0 | D135: GmTMax
A136: Gm_Cnorm | C136: 0.463 | D136: GmMaxC
A137: Gm_beta | C137: 1.00 | D137: Gmbeta | J137: =LN(2)/LN((C135-C133)/(C134-C133)) -> 2.57
C156: 0
